fUST/lending_fUST_20241220
["ID","MTS","AMOUNT","RATE_DAILY","PERIOD"]
[346076742,1734693082725,-151.0,0.00023176,7]
[346076743,1734693082742,-189.753428,0.00023176,7]
[346076744,1734693082763,-189.753428,0.00023176,7]
[346076745,1734693082778,-151.0,0.00023286,7]
[346076746,1734693082793,-1262.667456,0.00023286,7]
[346076747,1734693082807,-500.0,0.00023287,6]
[346076748,1734693082822,-150.08,0.00023287,6]
[346076749,1734693082838,-500.0,0.00023287,6]
[346076750,1734693082852,-500.0,0.00023287,6]
[346076751,1734693082867,-151.0,0.00023287,7]
[346076752,1734693082881,-228.329839,0.00023287,7]
[346076753,1734693082895,-151.0,0.00023287,7]
[346076754,1734693082910,-151.0,0.00023287,7]
[346076755,1734693082925,-151.0,0.00023287,7]
[346076756,1734693082939,-151.0,0.00023287,7]
[346076757,1734693082958,-158.946282,0.00023287,7]
[346076758,1734693082972,-151.0,0.00023287,7]
[346076759,1734693082988,-305.149825,0.00023287,7]
[346076760,1734693083002,-305.149825,0.00023287,7]
[346076761,1734693083016,-409.274072,0.00023287,7]
[346076762,1734693083031,-409.274072,0.00023287,7]
[346076763,1734693083046,-500.0,0.00023287,6]
[346076764,1734693083060,-500.0,0.00023287,6]
[346076765,1734693083075,-506.83758705,0.00023287,6]
[346076766,1734693083090,-602.42,0.00023287,6]
[346076767,1734693083104,-500.0,0.00023287,6]
[346076768,1734693083120,-500.0,0.00023287,6]
[346076769,1734693083134,-500.0,0.00023287,6]
[346076770,1734693083149,-1144.54,0.00023287,6]
[346076771,1734693083164,-500.0,0.00023287,6]
[346076772,1734693083179,-1262.667456,0.00023287,7]
[346076773,1734693083195,-500.0,0.00023287,6]
[346076774,1734693083211,-500.0,0.00023287,6]
[346076775,1734693083226,-502.23,0.00023287,6]
[346076776,1734693083242,-500.0,0.00023287,6]
[346076777,1734693083255,-225.74653219,0.00023287,6]
[346076778,1734693083275,-500.0,0.00023287,6]
[346076779,1734693083292,-500.0,0.00023287,6]
[346076780,1734693083308,-500.0,0.00023287,6]
[346076781,1734693083322,-504.17,0.00023287,6]
[346076782,1734693083337,-500.0,0.00023287,6]
[346076783,1734693083352,-649.76,0.00023287,6]
[346076784,1734693083367,-660.53,0.00023287,6]
[346076785,1734693083381,-500.0,0.00023287,6]
[346076786,1734693083396,-1017.84,0.00023287,6]
[346076787,1734693083412,-365.239564,0.00023287,7]
[346076788,1734693083427,-365.239564,0.00023287,7]
[346076789,1734693083449,-500.0,0.00023287,6]
[346076790,1734693083466,-884.09,0.00023287,6]
[346076791,1734693083482,-365.239564,0.00023287,7]
[346076792,1734693083497,-500.0,0.00023287,6]
[346076793,1734693083673,-365.239564,0.00023287,7]
[346076794,1734693083699,-500.0,0.00023287,6]
[346076795,1734693083710,-500.0,0.00023287,6]
[346076796,1734693083720,-339.519478,0.00023287,7]
[346076797,1734693083730,-339.519478,0.00023287,7]
[346076798,1734693083739,-500.0,0.00023287,6]
[346076799,1734693083749,-339.519478,0.00023287,7]
[346076800,1734693083759,-339.519478,0.00023287,7]
[346076801,1734693083768,-500.0,0.00023287,6]
[346076802,1734693083778,-500.0,0.00023287,6]
[346076803,1734693083787,-1445.29,0.00023287,9]
[346076804,1734693083796,-500.0,0.00023287,6]
[346076805,1734693083806,-500.0,0.00023287,6]
[346076806,1734693083815,-800.6,0.00023287,6]
[346076807,1734693083825,-634.34,0.00023287,6]
[346076808,1734693083834,-957.36,0.00023287,6]
[346076809,1734693083844,-500.0,0.00023287,6]
[346076810,1734693083854,-500.0,0.00023287,6]
[346076811,1734693083863,-505.28700191,0.00023287,6]
[346076812,1734693083872,-500.0,0.00023287,6]
[346076813,1734693083881,-500.0,0.00023287,6]
[346076814,1734693083891,-1728.45,0.00023287,6]
[346076815,1734693083900,-500.0,0.00023287,6]
[346076816,1734693083909,-500.0,0.00023287,6]
[346076817,1734693083919,-437.27524,0.00023287,7]
[346076818,1734693083929,-437.27524,0.00023287,7]
[346076819,1734693083938,-430.03621424,0.00023287,6]
[346076820,1734693083948,-500.0,0.00023287,6]
[346076821,1734693083958,-723.0,0.00023287,6]
[346076822,1734693083967,-1023.35,0.00023287,6]
[346076823,1734693083977,-565.08,0.00023287,6]
[346076824,1734693083986,-298.91607345,0.00023287,6]
[346076825,1734693083996,-500.0,0.00023287,6]
[346076826,1734693084005,-4532.594349,0.00023287,7]
[346076827,1734693084015,-500.0,0.00023287,6]
[346076828,1734693084024,-355.47254111,0.00023287,6]
[346076829,1734693084033,-1199.17,0.00023287,6]
[346076830,1734693084044,-500.0,0.00023287,6]
[346076831,1734693084053,-500.0,0.00023287,6]
[346076832,1734693084062,-592.75,0.00023287,6]
[346076833,1734693084072,-500.0,0.00023287,6]
[346076834,1734693084082,-500.0,0.00023287,6]
[346076835,1734693084091,-500.0,0.00023287,6]
[346076836,1734693084101,-500.0,0.00023287,6]
[346076837,1734693084110,-765.62,0.00023287,6]
[346076838,1734693084120,-500.0,0.00023287,6]
[346076839,1734693084129,-500.0,0.00023287,6]
[346076840,1734693084139,-500.0,0.00023287,6]
[346076841,1734693084148,-1006.14,0.00023287,6]
[346076842,1734693084157,-500.0,0.00023287,6]
[346076843,1734693084167,-500.0,0.00023287,6]
[346076844,1734693084177,-887.36,0.00023287,6]
[346076845,1734693084187,-506.27792582,0.00023287,6]
[346076846,1734693084197,-1902.09,0.00023287,6]
[346076847,1734693084208,-500.0,0.00023287,6]
[346076848,1734693084218,-168.83013866,0.00023287,6]
[346076849,1734693084227,-1156.92,0.00023287,6]
[346076850,1734693084236,-208.099156,0.00023287,7]
[346076851,1734693084245,-208.099156,0.00023287,7]
[346076852,1734693084255,-208.099156,0.00023287,7]
[346076853,1734693084265,-208.099156,0.00023287,7]
[346076854,1734693084274,-500.0,0.00023287,6]
[346076855,1734693084284,-506.21,0.00023287,6]
[346076856,1734693084294,-538.01,0.00023287,6]
[346076857,1734693084304,-500.0,0.00023287,6]
[346076858,1734693084313,-1161.97,0.00023287,6]
[346076859,1734693084323,-151.0,0.00023287,7]
[346076860,1734693084333,-500.0,0.00023287,6]
[346076861,1734693084343,-500.0,0.00023287,6]
[346076862,1734693084353,-268.24254296,0.00023287,6]
[346076863,1734693084363,-500.0,0.00023287,6]
[346076864,1734693084372,-500.0,0.00023287,6]
[346076865,1734693084382,-902.08,0.00023287,6]
[346076866,1734693084392,-500.0,0.00023287,6]
[346076867,1734693084402,-1667.53,0.00023287,6]
[346076868,1734693084412,-349.60246664,0.00023287,6]
[346076869,1734693084424,-500.0,0.00023287,6]
[346076870,1734693084433,-744.530375,0.00023287,7]
[346076871,1734693084443,-580.22,0.00023287,6]
[346076872,1734693084456,-744.530375,0.00023287,7]
[346076873,1734693084471,-1293.82,0.00023287,6]
[346076874,1734693084481,-472.24060304,0.00023287,6]
[346076875,1734693084491,-500.0,0.00023287,6]
[346076876,1734693084500,-500.0,0.00023287,6]
[346076877,1734693084511,-1211.12,0.00023287,6]
[346076878,1734693084521,-500.0,0.00023287,6]
[346076879,1734693084531,-500.0,0.00023287,6]
[346076880,1734693084541,-500.0,0.00023287,6]
[346076881,1734693084551,-510.23,0.00023287,6]
[346076882,1734693084560,-500.0,0.00023287,6]
[346076883,1734693084570,-988.28,0.00023287,6]
[346076884,1734693084579,-2509.21,0.00023287,6]
[346076885,1734693084589,-1456.58,0.00023287,6]
[346076886,1734693084598,-664.27,0.00023287,6]
[346076887,1734693084608,-500.0,0.00023287,6]
[346076888,1734693084617,-1215.59,0.00023287,6]
[346076889,1734693084627,-1202.07,0.00023287,6]
[346076890,1734693084636,-500.0,0.00023287,6]
[346076891,1734693084645,-500.0,0.00023287,6]
[346076892,1734693084655,-500.0,0.00023287,6]
[346076893,1734693084664,-500.0,0.00023287,6]
[346076894,1734693084673,-500.0,0.00023287,6]
[346076895,1734693084683,-500.0,0.00023287,6]
[346076896,1734693084692,-870.43,0.00023287,6]
[346076897,1734693084702,-500.0,0.00023287,6]
[346076898,1734693084713,-500.0,0.00023287,6]
[346076899,1734693084722,-500.0,0.00023287,6]
[346076900,1734693084731,-500.0,0.00023287,6]
[346076901,1734693084741,-500.0,0.00023287,6]
[346076902,1734693084751,-500.0,0.00023287,6]
[346076903,1734693084761,-534.47,0.00023287,6]
[346076904,1734693084771,-500.0,0.00023287,6]
[346076905,1734693084781,-500.0,0.00023287,6]
[346076906,1734693084790,-500.0,0.00023287,6]
[346076907,1734693084800,-258.234953,0.00023287,7]
[346076908,1734693084810,-500.0,0.00023287,6]
[346076909,1734693084819,-151.0,0.00023287,7]
[346076910,1734693084828,-258.234953,0.00023287,7]
[346076911,1734693084837,-151.0,0.00023287,7]
[346076912,1734693084848,-500.0,0.00023287,6]
[346076913,1734693084857,-258.234953,0.00023287,7]
[346076914,1734693084867,-258.234953,0.00023287,7]
[346076915,1734693084877,-663.44,0.00023287,6]
[346076916,1734693084886,-644.54,0.00023287,6]
[346076917,1734693084896,-500.0,0.00023287,6]
[346076918,1734693084906,-500.0,0.00023287,6]
[346076919,1734693084916,-511.10442521,0.00023287,6]
[346076920,1734693084926,-200.0,0.00023287,6]
[346076921,1734693084935,-500.0,0.00023287,6]
[346076922,1734693084945,-500.0,0.00023287,6]
[346076923,1734693084956,-500.0,0.00023287,6]
[346076924,1734693084966,-500.0,0.00023287,6]
[346076925,1734693084975,-3028.67,0.00023287,6]
[346076926,1734693084986,-500.0,0.00023287,6]
[346076927,1734693084995,-662.01,0.00023287,6]
[346076928,1734693085005,-500.0,0.00023287,6]
[346076929,1734693085015,-400.89,0.00023287,6]
[346076930,1734693085024,-711.74,0.00023287,6]
[346076931,1734693085034,-500.0,0.00023287,6]
[346076932,1734693085044,-500.0,0.00023287,6]
[346076933,1734693085053,-554.08,0.00023287,6]
[346076934,1734693085062,-500.0,0.00023287,6]
[346076935,1734693085072,-645.88,0.00023287,6]
[346076936,1734693085081,-500.0,0.00023287,6]
[346076937,1734693085090,-577.97,0.00023287,6]
[346076938,1734693085099,-314.09866231,0.00023287,6]
[346076939,1734693085109,-500.0,0.00023287,6]
[346076940,1734693085118,-1637.88,0.00023287,6]
[346076941,1734693085127,-500.0,0.00023287,6]
[346076942,1734693085137,-778.88,0.00023287,6]
[346076943,1734693085148,-500.0,0.00023287,6]
[346076944,1734693085157,-2108.73,0.00023287,6]
[346076945,1734693085166,-642.6,0.00023287,6]
[346076946,1734693085176,-500.0,0.00023287,6]
[346076947,1734693085186,-993.42,0.00023287,6]
[346076948,1734693085196,-413.026202,0.00023287,7]
[346076949,1734693085206,-500.0,0.00023287,6]
[346076950,1734693085215,-413.026202,0.00023287,7]
[346076951,1734693085225,-500.0,0.00023287,6]
[346076952,1734693085235,-500.0,0.00023287,6]
[346076953,1734693085245,-500.0,0.00023287,6]
[346076954,1734693085255,-500.0,0.00023287,6]
[346076955,1734693085264,-1347.62,0.00023287,6]
[346076956,1734693085273,-413.026202,0.00023287,7]
[346076957,1734693085283,-413.026202,0.00023287,7]
[346076958,1734693085292,-1576.34,0.00023287,6]
[346076959,1734693085302,-500.0,0.00023287,6]
[346076960,1734693085312,-500.0,0.00023287,6]
[346076961,1734693085321,-559.19,0.00023287,6]
[346076962,1734693085331,-783.39,0.00023287,6]
[346076963,1734693085340,-500.0,0.00023287,6]
[346076964,1734693085350,-500.0,0.00023287,6]
[346076965,1734693085359,-816.89,0.00023287,6]
[346076966,1734693085369,-500.0,0.00023287,6]
[346076967,1734693085378,-1486.6,0.00023287,6]
[346076968,1734693085388,-683.88,0.00023287,6]
[346076969,1734693085397,-500.0,0.00023287,6]
[346076970,1734693085407,-513.97035956,0.00023287,6]
[346076971,1734693085419,-500.0,0.00023287,6]
[346076972,1734693085430,-500.0,0.00023287,6]
[346076973,1734693085444,-500.0,0.00023287,6]
[346076974,1734693085456,-3350.69,0.00023287,6]
[346076975,1734693085466,-500.0,0.00023287,6]
[346076976,1734693085475,-3984.39,0.00023287,6]
[346076977,1734693085485,-500.0,0.00023287,6]
[346076978,1734693085494,-500.0,0.00023287,6]
[346076979,1734693085504,-657.82,0.00023287,6]
[346076980,1734693085514,-455.69889578,0.00023287,6]
[346076981,1734693085523,-908.77,0.00023287,6]
[346076982,1734693085533,-3922.68197,0.00023287,7]
[346076983,1734693085542,-500.0,0.00023287,6]
[346076984,1734693085552,-500.0,0.00023287,6]
[346076985,1734693085562,-3922.68197,0.00023287,7]
[346076986,1734693085571,-500.0,0.00023287,6]
[346076987,1734693085581,-628.05,0.00023287,6]
[346076988,1734693085590,-214.83013616,0.00023287,6]
[346076989,1734693085600,-500.0,0.00023287,6]
[346076990,1734693085609,-579.5,0.00023287,6]
[346076991,1734693085619,-162.087698,0.00023287,7]
[346076992,1734693085628,-162.087698,0.00023287,7]
[346076993,1734693085638,-750.31,0.00023287,6]
[346076994,1734693085648,-519.61,0.00023287,6]
[346076995,1734693085657,-500.0,0.00023287,6]
[346076996,1734693085668,-3405.57585,0.00023287,7]
[346076997,1734693085801,-2341.45,0.00023287,6]
[346076998,1734693085812,-703.35,0.00023287,6]
[346076999,1734693085822,-3405.57585,0.00023287,7]
[346077000,1734693085831,-846.66,0.00023287,6]
[346077001,1734693085841,-500.0,0.00023287,6]
[346077002,1734693085851,-558.24,0.00023287,6]
[346077003,1734693085861,-500.0,0.00023287,6]
[346077004,1734693085871,-784.95,0.00023287,6]
[346077005,1734693085880,-929.35,0.00023287,6]
[346077006,1734693085889,-500.0,0.00023287,6]
[346077007,1734693085899,-2078.12,0.00023287,6]
[346077008,1734693085909,-604.50270762,0.00023287,6]
[346077009,1734693085919,-500.0,0.00023287,6]
[346077010,1734693085928,-2253.32,0.00023287,6]
[346077011,1734693085938,-753.77,0.00023287,6]
[346077012,1734693085948,-1958.52,0.00023287,6]
[346077013,1734693085960,-928.58,0.00023287,6]
[346077014,1734693085969,-500.0,0.00023287,6]
[346077015,1734693085979,-500.0,0.00023287,6]
[346077016,1734693085989,-2612.84,0.00023287,6]
[346077017,1734693085998,-816.69,0.00023287,6]
[346077018,1734693086010,-500.0,0.00023287,6]
[346077019,1734693086019,-283.033407,0.00023287,7]
[346077020,1734693086028,-283.033407,0.00023287,7]
[346077021,1734693086038,-942.58,0.00023287,6]
[346077022,1734693086047,-998.57,0.00023287,6]
[346077023,1734693086056,-500.0,0.00023287,6]
[346077024,1734693086065,-500.0,0.00023287,6]
[346077025,1734693086075,-3375.68,0.00023287,6]
[346077026,1734693086084,-3019.62,0.00023287,6]
[346077027,1734693086094,-591.11,0.00023287,6]
[346077028,1734693086103,-500.0,0.00023287,6]
[346077029,1734693086113,-829.78,0.00023287,6]
[346077030,1734693086122,-500.0,0.00023287,6]
[346077031,1734693086132,-500.0,0.00023287,6]
[346077032,1734693086141,-870.11,0.00023287,6]
[346077033,1734693086151,-2878.24,0.00023287,6]
[346077034,1734693086161,-500.0,0.00023287,6]
[346077035,1734693086171,-500.0,0.00023287,6]
[346077036,1734693086180,-500.0,0.00023287,6]
[346077037,1734693086190,-2093.85,0.00023287,6]
[346077038,1734693086200,-561.5,0.00023287,6]
[346077039,1734693086213,-1000.0,0.00023287,6]
[346077040,1734693086224,-500.0,0.00023287,6]
[346077041,1734693086233,-575.58,0.00023287,6]
[346077042,1734693086243,-500.0,0.00023287,6]
[346077043,1734693086253,-606.38,0.00023287,6]
[346077044,1734693086263,-500.0,0.00023287,6]
[346077045,1734693086274,-1051.37,0.00023287,6]
[346077046,1734693086284,-500.0,0.00023287,6]
[346077047,1734693086293,-605.01,0.00023287,6]
[346077048,1734693086303,-1895.2,0.00023287,6]
[346077049,1734693086313,-1304.77,0.00023287,6]
[346077050,1734693086322,-978.44,0.00023287,6]
[346077051,1734693086332,-500.0,0.00023287,6]
[346077052,1734693086341,-500.0,0.00023287,6]
[346077053,1734693086351,-186.82888,0.00023287,7]
[346077054,1734693086361,-151.0,0.00023287,7]
[346077055,1734693086372,-823.06,0.00023287,6]
[346077056,1734693086382,-1110.35,0.00023287,6]
[346077057,1734693086393,-3107.96,0.00023287,6]
[346077058,1734693086402,-15620.31,0.00023287,6]
[346077059,1734693086413,-186.82888,0.00023287,7]
[346077060,1734693086424,-189.753428,0.00023287,7]
[346077061,1734693086433,-1979.3,0.00023287,6]
[346077062,1734693086443,-189.753428,0.00023287,7]
[346077063,1734693086452,-1698.36,0.00023287,6]
[346077064,1734693086463,-1217.27,0.00023287,6]
[346077065,1734693086473,-1129.89,0.00023287,6]
[346077066,1734693086483,-500.0,0.00023287,6]
[346077067,1734693086492,-500.0,0.00023287,6]
[346077068,1734693086502,-3084.04,0.00023287,6]
[346077069,1734693086513,-500.0,0.00023287,6]
[346077070,1734693086523,-611.22,0.00023287,6]
[346077071,1734693086533,-500.0,0.00023287,6]
[346077072,1734693086543,-1273.08209,0.00023287,7]
[346077073,1734693086552,-1273.08209,0.00023287,7]
[346077074,1734693086561,-514.9,0.00023287,6]
[346077075,1734693086571,-749.85,0.00023287,6]
[346077076,1734693086580,-1079.40644,0.00023287,7]
[346077077,1734693086589,-1709.27,0.00023287,6]
[346077078,1734693086599,-1273.08209,0.00023287,7]
[346077079,1734693086608,-1273.08209,0.00023287,7]
[346077080,1734693086618,-1079.40644,0.00023287,7]
[346077081,1734693086627,-631.5,0.00023287,6]
[346077082,1734693086636,-3926.23,0.00023287,6]
[346077083,1734693086646,-681.759088,0.00023287,7]
[346077084,1734693086656,-8032.25,0.00023287,6]
[346077085,1734693086665,-957.95,0.00023287,6]
[346077086,1734693086675,-681.759088,0.00023287,7]
[346077087,1734693086685,-647.04,0.00023287,6]
[346077088,1734693086695,-500.0,0.00023287,6]
[346077089,1734693086706,-151.0,0.00023287,7]
[346077090,1734693086715,-500.0,0.00023287,6]
[346077091,1734693086725,-880.3,0.00023287,6]
[346077092,1734693086734,-828.99,0.00023287,6]
[346077093,1734693086744,-500.0,0.00023287,6]
[346077094,1734693086754,-500.0,0.00023287,6]
[346077095,1734693086764,-500.0,0.00023287,6]
[346077096,1734693086773,-1556.66,0.00023287,2]
[346077097,1734693086783,-500.0,0.00023287,6]
[346077098,1734693086792,-772.83,0.00023287,6]
[346077099,1734693086802,-933.46,0.00023287,6]
[346077100,1734693086811,-231.67979924,0.00023287,6]
[346077101,1734693086820,-727.74,0.00023287,6]
[346077102,1734693086830,-1507.13,0.00023287,6]
[346077103,1734693086839,-628.91,0.00023287,6]
[346077104,1734693086848,-500.0,0.00023287,6]
[346077105,1734693086858,-500.0,0.00023287,6]
[346077106,1734693086868,-1026.99,0.00023287,6]
[346077107,1734693086877,-20507.92,0.00023287,6]
[346077108,1734693086887,-1914.41,0.00023287,6]
[346077109,1734693086896,-945.69,0.00023287,6]
[346077110,1734693086906,-769.8,0.00023287,6]
[346077111,1734693086915,-31690.43,0.00023287,6]
[346077112,1734693086925,-10891.37,0.00023287,6]
[346077113,1734693086934,-1881.92,0.00023287,6]
[346077114,1734693086944,-551.82,0.00023287,6]
[346077115,1734693086953,-500.0,0.00023287,6]
[346077116,1734693086963,-500.0,0.00023287,6]
[346077117,1734693086972,-741.52,0.00023287,6]
[346077118,1734693086982,-739.27,0.00023287,6]
[346077119,1734693086992,-500.0,0.00023287,6]
[346077120,1734693087001,-599.48,0.00023287,6]
[346077121,1734693087011,-674.12,0.00023287,6]
[346077122,1734693087020,-500.0,0.00023287,6]
[346077123,1734693087030,-500.0,0.00023287,6]
[346077124,1734693087040,-229.608618,0.00023287,7]
[346077125,1734693087050,-1525.74,0.00023287,6]
[346077126,1734693087059,-82254.19,0.00023287,6]
[346077127,1734693087069,-5572.46,0.00023287,6]
[346077128,1734693087078,-500.0,0.00023287,6]
[346077129,1734693087088,-730.97,0.00023287,6]
[346077130,1734693087097,-623.84,0.00023287,6]
[346077131,1734693087107,-500.0,0.00023287,6]
[346077132,1734693087116,-12564.99,0.00023287,6]
[346077133,1734693087125,-500.0,0.00023287,6]
[346077134,1734693087134,-734.96,0.00023287,6]
[346077135,1734693087143,-5780.94,0.00023287,6]
[346077136,1734693087153,-774.73,0.00023287,6]
[346077137,1734693087163,-836.63,0.00023287,6]
[346077138,1734693087173,-500.0,0.00023287,6]
[346077139,1734693087182,-527.3,0.00023287,6]
[346077140,1734693087192,-5039.08,0.00023287,6]
[346077141,1734693087201,-500.0,0.00023287,6]
[346077142,1734693087213,-500.0,0.00023287,6]
[346077143,1734693087222,-2098.69,0.00023287,6]
[346077144,1734693087232,-1080.46,0.00023287,6]
[346077145,1734693087242,-648.6,0.00023287,6]
[346077146,1734693087251,-603.16,0.00023287,6]
[346077147,1734693087261,-4746.74,0.00023287,6]
[346077148,1734693087271,-3087.43,0.00023287,6]
[346077149,1734693087281,-501.84,0.00023287,6]
[346077150,1734693087291,-1141.775585,0.00023287,7]
[346077151,1734693087301,-500.0,0.00023287,6]
[346077152,1734693087311,-895.12,0.00023287,6]
[346077153,1734693087320,-500.0,0.00023287,6]
[346077154,1734693087330,-1141.775585,0.00023287,7]
[346077155,1734693087339,-906.86,0.00023287,6]
[346077156,1734693087349,-384.00866294,0.00023287,6]
[346077157,1734693087360,-645.86,0.00023287,6]
[346077158,1734693087370,-796.51,0.00023287,6]
[346077159,1734693087380,-4289.65,0.00023287,6]
[346077160,1734693087389,-1129.09,0.00023287,6]
[346077161,1734693087399,-641.11,0.00023287,6]
[346077162,1734693087408,-1127.64,0.00023287,6]
[346077163,1734693087420,-31466.27,0.00023287,6]
[346077164,1734693087434,-797.8,0.00023287,6]
[346077165,1734693087448,-500.0,0.00023287,6]
[346077166,1734693087465,-500.0,0.00023287,6]
[346077167,1734693087476,-996.74,0.00023287,6]
[346077168,1734693087487,-500.0,0.00023287,6]
[346077169,1734693087498,-500.0,0.00023287,6]
[346077170,1734693087508,-1422.15,0.00023287,6]
[346077171,1734693087519,-500.0,0.00023287,6]
[346077172,1734693087530,-1104.77,0.00023287,6]
[346077173,1734693087540,-500.0,0.00023287,6]
[346077174,1734693087549,-505.39,0.00023287,6]
[346077175,1734693087559,-7845.89,0.00023287,6]
[346077176,1734693087568,-4838.119892,0.00023287,7]
[346077177,1734693087578,-4838.119892,0.00023287,7]
[346077178,1734693087587,-953.99,0.00023287,6]
[346077179,1734693087598,-500.0,0.00023287,6]
[346077180,1734693087607,-4901.08,0.00023287,6]
[346077181,1734693087617,-4838.119892,0.00023287,7]
[346077182,1734693087627,-4838.119892,0.00023287,7]
[346077183,1734693087637,-1667.65,0.00023287,6]
[346077184,1734693087646,-500.0,0.00023287,6]
[346077185,1734693087766,-3046.77,0.00023287,4]
[346077186,1734693087776,-500.0,0.00023287,6]
[346077187,1734693087785,-500.0,0.00023287,6]
[346077188,1734693087795,-500.0,0.00023287,6]
[346077189,1734693087805,-989.18,0.00023287,6]
[346077190,1734693087815,-151.0,0.00023287,7]
[346077191,1734693087824,-340.27349244,0.00023287,6]
[346077192,1734693087833,-871.64,0.00023287,6]
[346077193,1734693087842,-4701.04,0.00023287,6]
[346077194,1734693087852,-1915.75,0.00023287,6]
[346077195,1734693087862,-535.40677269,0.00023287,6]
[346077196,1734693087871,-196.431731,0.00023287,7]
[346077197,1734693087881,-10035.19,0.00023287,6]
[346077198,1734693087891,-1877.64,0.00023287,6]
[346077199,1734693087901,-1244.76,0.00023287,2]
[346077200,1734693087911,-7749.62,0.00023287,6]
[346077201,1734693087921,-335.036907,0.00023287,7]
[346077202,1734693087930,-500.0,0.00023287,6]
[346077203,1734693087939,-5377.96,0.00023287,6]
[346077204,1734693087949,-2173.89,0.00023287,6]
[346077205,1734693087962,-2633.81,0.00023287,6]
[346077206,1734693087972,-335.036907,0.00023287,7]
[346077207,1734693087982,-2682.03,0.00023287,6]
[346077208,1734693087992,-500.0,0.00023287,6]
[346077209,1734693088002,-500.0,0.00023287,6]
[346077210,1734693088012,-500.0,0.00023287,6]
[346077211,1734693088021,-151.386173,0.00023287,7]
[346077212,1734693088031,-500.0,0.00023287,6]
[346077213,1734693088042,-568.8,0.00023287,6]
[346077214,1734693088052,-500.0,0.00023287,6]
[346077215,1734693088062,-151.0,0.00023287,7]
[346077216,1734693088072,-1371.8,0.00023287,6]
[346077217,1734693088082,-151.386173,0.00023287,7]
[346077218,1734693088091,-500.0,0.00023287,6]
[346077219,1734693088101,-151.0,0.00023287,7]
[346077220,1734693088111,-246.329835,0.00023287,7]
[346077221,1734693088121,-500.0,0.00023287,6]
[346077222,1734693088133,-4069.31,0.00023287,6]
[346077223,1734693088147,-500.0,0.00023287,6]
[346077224,1734693088161,-500.0,0.00023287,6]
[346077225,1734693088172,-4673.27,0.00023287,6]
[346077226,1734693088184,-500.0,0.00023287,6]
[346077227,1734693088194,-246.329835,0.00023287,7]
[346077228,1734693088209,-566.02,0.00023287,6]
[346077229,1734693088219,-2791.17,0.00023287,6]
[346077230,1734693088229,-503.87,0.00023287,6]
[346077231,1734693088239,-1647.66,0.00023287,6]
[346077232,1734693088249,-500.0,0.00023287,6]
[346077233,1734693088259,-500.0,0.00023287,6]
[346077234,1734693088268,-500.0,0.00023287,6]
[346077235,1734693088279,-650.66,0.00023287,6]
[346077236,1734693088289,-2005.93,0.00023287,6]
[346077237,1734693088298,-500.0,0.00023287,6]
[346077238,1734693088308,-537.75,0.00023287,6]
[346077239,1734693088319,-1424.07,0.00023287,6]
[346077240,1734693088328,-500.0,0.00023287,6]
[346077241,1734693088338,-907.39,0.00023287,6]